fUSD/lending_fUSD_20250506
["ID","MTS","AMOUNT","RATE_DAILY","PERIOD"]
[360043451,1746513047210,-450.0,0.00019999,2]
[360043452,1746513047220,-450.0,0.00019999,2]
[360043453,1746513047230,-450.0,0.00019999,2]
[360043454,1746513047240,-450.0,0.00019999,2]
[360043455,1746513047250,-450.0,0.00019999,2]
[360043456,1746513047260,-450.0,0.00019999,2]
[360043457,1746513047270,-450.0,0.00019999,2]
[360043458,1746513047280,-450.0,0.00019999,2]
[360043459,1746513047293,-450.0,0.00019999,2]
[360043460,1746513047303,-450.0,0.00019999,2]
[360043461,1746513047314,-450.0,0.00019999,2]
[360043462,1746513047323,-450.0,0.00019999,2]
[360043463,1746513047333,-450.0,0.00019999,2]
[360043464,1746513047343,-450.0,0.00019999,2]
[360043465,1746513047354,-450.0,0.00019999,2]
[360043466,1746513047363,-450.0,0.00019999,2]
[360043467,1746513047373,-344.93,0.00019999,2]
[360043468,1746513047383,-450.0,0.00019999,2]
[360043469,1746513047392,-450.0,0.00019999,2]
[360043470,1746513047402,-450.0,0.00019999,2]
[360043471,1746513047411,-450.0,0.00019999,2]
[360043472,1746513047421,-450.0,0.00019999,2]
[360043473,1746513047431,-450.0,0.00019999,2]
[360043474,1746513047441,-450.0,0.00019999,2]
[360043475,1746513047451,-450.0,0.00019999,2]
[360043476,1746513047461,-450.0,0.00019999,2]
[360043477,1746513047471,-450.0,0.00019999,2]
[360043478,1746513047481,-450.0,0.00019999,2]
[360043479,1746513047491,-450.0,0.00019999,2]
[360043480,1746513047500,-199.78326007,0.00019999,2]
[360043481,1746513047510,-450.0,0.00019999,2]
[360043482,1746513047520,-450.0,0.00019999,2]
[360043483,1746513047530,-450.0,0.00019999,2]
[360043484,1746513047540,-450.0,0.00019999,2]
[360043485,1746513047550,-450.0,0.00019999,2]
[360043486,1746513047559,-450.0,0.00019999,2]
[360043487,1746513047569,-450.0,0.00019999,2]
[360043488,1746513047578,-450.0,0.00019999,2]
[360043489,1746513047588,-450.0,0.00019999,2]
[360043490,1746513047598,-450.0,0.00019999,2]
[360043491,1746513047608,-450.0,0.00019999,2]
[360043492,1746513047618,-450.0,0.00019999,2]
[360043493,1746513047628,-450.0,0.00019999,2]
[360043494,1746513047638,-274.78,0.00019999,2]
[360043495,1746513047647,-450.0,0.00019999,2]
[360043496,1746513047657,-509.71,0.00019999,2]
[360043497,1746513047667,-153.077674,0.00019999,2]
[360043498,1746513047677,-155.354969,0.00019999,2]
[360043499,1746513047687,-450.0,0.00019999,2]
[360043500,1746513047697,-151.0,0.00019999,2]
[360043501,1746513047707,-151.0,0.00019999,2]
[360043502,1746513047717,-151.0,0.00019999,2]
[360043503,1746513047727,-151.0,0.00019999,2]
[360043504,1746513047737,-179.16,0.00019999,2]
[360043505,1746513047746,-151.0,0.00019999,2]
[360043506,1746513047756,-618.59,0.00019999,2]
[360043507,1746513047765,-618.59,0.00019999,2]
[360043508,1746513047775,-618.59,0.00019999,2]
[360043509,1746513047784,-618.59,0.00019999,2]
[360043510,1746513047793,-618.59,0.00019999,2]
[360043511,1746513047803,-618.59,0.00019999,2]
[360043512,1746513047812,-618.59,0.00019999,2]
[360043513,1746513047822,-618.59,0.00019999,2]
[360043514,1746513047831,-618.59,0.00019999,2]
[360043515,1746513047840,-618.59,0.00019999,2]
[360043516,1746513047849,-618.59,0.00019999,2]
[360043517,1746513047858,-151.0,0.00019999,2]
[360043518,1746513047868,-618.59,0.00019999,2]
[360043519,1746513047877,-618.59,0.00019999,2]
[360043520,1746513047886,-618.59,0.00019999,2]
[360043521,1746513047896,-618.59,0.00019999,2]
[360043522,1746513047905,-618.59,0.00019999,2]
[360043523,1746513047915,-618.59,0.00019999,2]
[360043524,1746513047924,-151.0,0.00019999,2]
[360043525,1746513047934,-618.59,0.00019999,2]
[360043526,1746513047944,-618.59,0.00019999,2]
[360043527,1746513047953,-618.59,0.00019999,2]
[360043528,1746513047963,-618.59,0.00019999,2]
[360043529,1746513047972,-618.68,0.00019999,2]
[360043530,1746513047981,-151.360372,0.00019999,2]
[360043531,1746513047991,-417.52,0.00019999,2]
[360043532,1746513048000,-151.0,0.00019999,2]
[360043533,1746513048010,-450.0,0.00019999,2]
[360043534,1746513048019,-450.0,0.00019999,2]
[360043535,1746513048028,-545.56309134,0.00019999,2]
[360043536,1746513048038,-151.0,0.00019999,2]
[360043537,1746513048049,-13258.29,0.00019999,2]
[360043538,1746513048060,-13258.29,0.00019999,2]
[360043539,1746513048069,-13258.29,0.00019999,2]
[360043540,1746513048079,-13258.29,0.00019999,2]
[360043541,1746513048089,-13258.29,0.00019999,2]
[360043542,1746513048098,-13258.29,0.00019999,2]
[360043543,1746513048107,-152.30056,0.00019999,2]
[360043544,1746513048117,-151.0,0.00019999,2]
[360043545,1746513048127,-13258.29,0.00019999,2]
[360043546,1746513048136,-13258.29,0.00019999,2]
[360043547,1746513048146,-13258.29,0.00019999,2]
[360043548,1746513048155,-13258.29,0.00019999,2]
[360043549,1746513048165,-13258.29,0.00019999,2]
[360043550,1746513048174,-13258.29,0.00019999,2]
[360043551,1746513048183,-13258.29,0.00019999,2]
[360043552,1746513048193,-13258.29,0.00019999,2]
[360043553,1746513048202,-13258.29,0.00019999,2]
[360043554,1746513048211,-13258.29,0.00019999,2]
[360043555,1746513048221,-13258.29,0.00019999,2]
[360043556,1746513048231,-13258.29,0.00019999,2]
[360043557,1746513048240,-13258.29,0.00019999,2]
[360043558,1746513048249,-13258.29,0.00019999,2]
[360043559,1746513048258,-13258.4851,0.00019999,2]
[360043560,1746513048267,-154.112275,0.00019999,2]
[360043561,1746513048276,-454.48,0.00019999,2]
[360043562,1746513048286,-286.027763,0.00019999,2]
[360043563,1746513048295,-151.0,0.00019999,2]
[360043564,1746513048304,-450.0,0.00019999,2]
[360043565,1746513048314,-450.0,0.00019999,2]
[360043566,1746513048323,-450.0,0.00019999,2]
[360043567,1746513048332,-450.0,0.00019999,2]
[360043568,1746513048342,-450.0,0.00019999,2]
[360043569,1746513048351,-450.0,0.00019999,2]
[360043570,1746513048360,-450.0,0.00019999,2]
[360043571,1746513048370,-450.0,0.00019999,2]
[360043572,1746513048379,-456.63375254,0.00019999,2]
[360043573,1746513048388,-286.027763,0.00019999,2]
[360043574,1746513048398,-450.0,0.00019999,2]
[360043575,1746513048409,-450.0,0.00019999,2]
[360043576,1746513048419,-450.0,0.00019999,2]
[360043577,1746513048429,-437.45405081,0.00019999,2]
[360043578,1746513048438,-450.0,0.00019999,2]
[360043579,1746513048448,-450.0,0.00019999,2]
[360043580,1746513048457,-450.0,0.00019999,2]
[360043581,1746513048467,-450.0,0.00019999,2]
[360043582,1746513048477,-450.0,0.00019999,2]
[360043583,1746513048487,-450.0,0.00019999,2]
[360043584,1746513048496,-151.0,0.00019999,2]
[360043585,1746513048506,-151.0,0.00019999,2]
[360043586,1746513048516,-166.01937314,0.00019999,2]
[360043587,1746513048526,-450.0,0.00019999,2]
[360043588,1746513048536,-450.0,0.00019999,2]
[360043589,1746513048546,-450.0,0.00019999,2]
[360043590,1746513048556,-450.0,0.00019999,2]
[360043591,1746513048566,-450.0,0.00019999,2]
[360043592,1746513048576,-450.0,0.00019999,2]
[360043593,1746513048586,-450.0,0.00019999,2]
[360043594,1746513048595,-403.78,0.00019999,2]
[360043595,1746513048605,-152.486184,0.00019999,2]
[360043596,1746513048615,-236.855518,0.00019999,2]
[360043597,1746513048625,-450.0,0.00019999,2]
[360043598,1746513048635,-236.855518,0.00019999,2]
[360043599,1746513048645,-450.0,0.00019999,2]
[360043600,1746513048654,-450.0,0.00019999,2]
[360043601,1746513048664,-450.0,0.00019999,2]
[360043602,1746513048674,-151.0,0.00019999,2]
[360043603,1746513048684,-450.0,0.00019999,2]
[360043604,1746513048694,-450.0,0.00019999,2]
[360043605,1746513048703,-450.0,0.00019999,2]
[360043606,1746513048713,-450.0,0.00019999,2]
[360043607,1746513048722,-554.15,0.00019999,2]
[360043608,1746513048732,-450.0,0.00019999,2]
[360043609,1746513048742,-398.97655045,0.00019999,2]
[360043610,1746513048752,-255.98716498,0.00019999,2]
[360043611,1746513048763,-450.0,0.00019999,2]
[360043612,1746513048773,-450.0,0.00019999,2]
[360043613,1746513048783,-450.0,0.00019999,2]
[360043614,1746513048794,-450.0,0.00019999,2]
[360043615,1746513048804,-297.47,0.00019999,2]
[360043616,1746513048814,-450.0,0.00019999,2]
[360043617,1746513048823,-450.0,0.00019999,2]
[360043618,1746513048833,-450.0,0.00019999,2]
[360043619,1746513048843,-450.0,0.00019999,2]
[360043620,1746513048853,-183.23719913,0.00019999,2]
[360043621,1746513048863,-450.0,0.00019999,2]
[360043622,1746513048874,-450.0,0.00019999,2]
[360043623,1746513048883,-450.0,0.00019999,2]
[360043624,1746513048893,-450.0,0.00019999,2]
[360043625,1746513048902,-551.5,0.00019999,2]
[360043626,1746513048912,-450.0,0.00019999,2]
[360043627,1746513048922,-450.0,0.00019999,2]
[360043628,1746513048931,-450.0,0.00019999,2]
[360043629,1746513048941,-450.0,0.00019999,2]
[360043630,1746513048950,-450.0,0.00019999,2]
[360043631,1746513048960,-450.0,0.00019999,2]
[360043632,1746513048969,-450.0,0.00019999,2]
[360043633,1746513048979,-450.0,0.00019999,2]
[360043634,1746513048989,-166.4,0.00019999,2]
[360043635,1746513048999,-450.0,0.00019999,2]
[360043636,1746513049009,-450.0,0.00019999,2]
[360043637,1746513049018,-450.0,0.00019999,2]
[360043638,1746513049027,-450.0,0.00019999,2]
[360043639,1746513049036,-450.0,0.00019999,2]
[360043640,1746513049047,-450.0,0.00019999,2]
[360043641,1746513049060,-450.0,0.00019999,2]
[360043642,1746513049070,-450.0,0.00019999,2]
[360043643,1746513049079,-450.0,0.00019999,2]
[360043644,1746513049089,-450.0,0.00019999,2]
[360043645,1746513049099,-450.0,0.00019999,2]
[360043646,1746513049109,-450.0,0.00019999,2]
[360043647,1746513049118,-450.0,0.00019999,2]
[360043648,1746513049127,-450.0,0.00019999,2]
[360043649,1746513049138,-450.0,0.00019999,2]
[360043650,1746513049148,-450.0,0.00019999,2]
[360043651,1746513049157,-450.0,0.00019999,2]
[360043652,1746513049167,-219.57550716,0.00019999,2]
[360043653,1746513049176,-450.0,0.00019999,2]
[360043654,1746513049186,-180.06924665,0.00019999,2]
[360043655,1746513049196,-450.0,0.00019999,2]
[360043656,1746513049205,-481.7447211,0.00019999,2]
[360043657,1746513049215,-528.86085073,0.00019999,2]
[360043658,1746513049226,-151.0,0.00019999,2]
[360043659,1746513049235,-450.0,0.00019999,2]
[360043660,1746513049245,-2607.09,0.00019999,2]
[360043661,1746513049254,-450.0,0.00019999,2]
[360043662,1746513049264,-2607.09,0.00019999,2]
[360043663,1746513049273,-450.0,0.00019999,2]
[360043664,1746513049283,-2607.09,0.00019999,2]
[360043665,1746513049292,-450.0,0.00019999,2]
[360043666,1746513049301,-2607.09,0.00019999,2]
[360043667,1746513049310,-450.0,0.00019999,2]
[360043668,1746513049320,-2607.09,0.00019999,2]
[360043669,1746513049330,-450.0,0.00019999,2]
[360043670,1746513049339,-2607.09,0.00019999,2]
[360043671,1746513049349,-450.0,0.00019999,2]
[360043672,1746513049358,-2607.09,0.00019999,2]
[360043673,1746513049367,-450.0,0.00019999,2]
[360043674,1746513049378,-2607.09,0.00019999,2]
[360043675,1746513049387,-450.0,0.00019999,2]
[360043676,1746513049396,-2607.09,0.00019999,2]
[360043677,1746513049406,-316.32099265,0.00019999,2]
[360043678,1746513049419,-2607.09,0.00019999,2]
[360043679,1746513049428,-2607.09,0.00019999,2]
[360043680,1746513049437,-2607.09,0.00019999,2]
[360043681,1746513049447,-2607.09,0.00019999,2]
[360043682,1746513049456,-2607.09,0.00019999,2]
[360043683,1746513049465,-2607.09,0.00019999,2]
[360043684,1746513049475,-2607.09,0.00019999,2]
[360043685,1746513049484,-2607.09,0.00019999,2]
[360043686,1746513049494,-2607.09,0.00019999,2]
[360043687,1746513049503,-2607.26308597,0.00019999,2]
[360043688,1746513049513,-6619.5,0.00019999,2]
[360043689,1746513049523,-6619.5,0.00019999,2]
[360043690,1746513049533,-6619.5,0.00019999,2]
[360043691,1746513049582,-6619.5,0.00019999,2]
[360043692,1746513049592,-6619.5,0.00019999,2]
[360043693,1746513049601,-6619.5,0.00019999,2]
[360043694,1746513049613,-6619.5,0.00019999,2]
[360043695,1746513049623,-6619.5,0.00019999,2]
[360043696,1746513049632,-6619.5,0.00019999,2]
[360043697,1746513049642,-6619.5,0.00019999,2]
[360043698,1746513049651,-6619.5,0.00019999,2]
[360043699,1746513049661,-6619.5,0.00019999,2]
[360043700,1746513049671,-6619.5,0.00019999,2]
[360043701,1746513049680,-6619.5,0.00019999,2]
[360043702,1746513049690,-6619.5,0.00019999,2]
[360043703,1746513049700,-6619.5,0.00019999,2]
[360043704,1746513049709,-6619.5,0.00019999,2]
[360043705,1746513049718,-6619.5,0.00019999,2]
[360043706,1746513049728,-6619.5,0.00019999,2]
[360043707,1746513049738,-6619.5,0.00019999,2]
[360043708,1746513049747,-6619.6245,0.00019999,2]
[360043709,1746513049756,-456.31,0.00019999,2]
[360043710,1746513049766,-450.0,0.00019999,2]
[360043711,1746513049775,-450.0,0.00019999,2]
[360043712,1746513049784,-450.0,0.00019999,2]
[360043713,1746513049793,-450.0,0.00019999,2]
[360043714,1746513049802,-211.15839927,0.00019999,2]
[360043715,1746513049811,-450.0,0.00019999,2]
[360043716,1746513049820,-450.0,0.00019999,2]
[360043717,1746513049830,-450.0,0.00019999,2]
[360043718,1746513049839,-450.0,0.00019999,2]
[360043719,1746513049849,-450.0,0.00019999,2]
[360043720,1746513049858,-450.0,0.00019999,2]
[360043721,1746513049867,-450.0,0.00019999,2]
[360043722,1746513049876,-450.0,0.00019999,2]
[360043723,1746513049887,-450.0,0.00019999,2]
[360043724,1746513049896,-450.0,0.00019999,2]
[360043725,1746513049905,-33.73890375,0.00019999,2]
[360043726,1746513050109,-518.85555992,0.00019996,2]
[360043727,1746513050119,-416.26109625,0.00019999,2]
[360043728,1746513050129,-450.0,0.00019999,2]
[360043729,1746513050139,-450.0,0.00019999,2]
[360043730,1746513050149,-450.0,0.00019999,2]
[360043731,1746513050158,-558.4751003,0.00019999,2]
[360043732,1746513050167,-450.0,0.00019999,2]
[360043733,1746513050177,-450.0,0.00019999,2]
[360043734,1746513050186,-450.0,0.00019999,2]
[360043735,1746513050195,-450.0,0.00019999,2]
[360043736,1746513050204,-450.0,0.00019999,2]
[360043737,1746513050214,-450.0,0.00019999,2]
[360043738,1746513050224,-450.0,0.00019999,2]
[360043739,1746513050234,-450.0,0.00019999,2]
[360043740,1746513050243,-450.0,0.00019999,2]
[360043741,1746513050253,-450.0,0.00019999,2]
[360043742,1746513050263,-450.0,0.00019999,2]
[360043743,1746513050273,-450.0,0.00019999,2]
[360043744,1746513050283,-450.0,0.00019999,2]
[360043745,1746513050292,-450.0,0.00019999,2]
[360043746,1746513050302,-450.0,0.00019999,2]
[360043747,1746513050312,-450.0,0.00019999,2]
[360043748,1746513050321,-450.0,0.00019999,2]
[360043749,1746513050331,-450.0,0.00019999,2]
[360043750,1746513050340,-450.0,0.00019999,2]
[360043751,1746513050349,-450.0,0.00019999,2]
[360043752,1746513050359,-279.37638401,0.00019999,2]
[360043753,1746513050368,-450.0,0.00019999,2]
[360043754,1746513050378,-450.0,0.00019999,2]
[360043755,1746513050387,-450.0,0.00019999,2]
[360043756,1746513050396,-450.0,0.00019999,2]
[360043757,1746513050406,-450.0,0.00019999,2]
[360043758,1746513050415,-521.76,0.00019999,2]
[360043759,1746513050424,-450.0,0.00019999,2]
[360043760,1746513050434,-492.59,0.00019999,2]
[360043761,1746513050444,-640.26,0.00019999,2]
[360043762,1746513050453,-640.26,0.00019999,2]
[360043763,1746513050463,-640.26,0.00019999,2]
[360043764,1746513050472,-640.26,0.00019999,2]
[360043765,1746513050482,-640.26,0.00019999,2]
[360043766,1746513050492,-450.0,0.00019999,2]
[360043767,1746513050501,-854.89,0.00019999,2]
[360043768,1746513050510,-450.0,0.00019999,2]
[360043769,1746513050520,-640.26,0.00019999,2]
[360043770,1746513050530,-854.89,0.00019999,2]
[360043771,1746513050540,-884.80755766,0.00019999,2]
[360043772,1746513050550,-6759.0,0.0002,2]
[360043773,1746513050560,-4015.0,0.0002,2]
[360043774,1746513050569,-1027.0,0.0002,2]
[360043775,1746513050579,-507525.53430186,0.0002,2]
[360043776,1746513050596,-450.0,0.00019999,2]
[360043777,1746513050606,-483.36463944,0.0002,2]
[360043778,1746513050617,-657.96086,0.0002,2]
[360043779,1746513050815,-40.90892483,0.0002,2]
[360043780,1746513050975,-450.0,0.00019996,2]
[360043781,1746513050986,-450.0,0.00019998,2]
[360043782,1746513050995,-299.4542109,0.00019998,2]
[360043783,1746513051275,-450.0,0.00019994,2]
[360043784,1746513051285,-492.67068164,0.00019994,2]
[360043785,1746513051295,-929.24,0.00019996,2]
[360043786,1746513051304,-450.0,0.00019997,2]
[360043787,1746513051314,-231.98861249,0.00019998,2]
[360043788,1746513051323,-450.0,0.00019998,2]
[360043789,1746513051333,-202.52682195,0.00019998,2]
[360043790,1746513051345,-247.47317805,0.00019998,2]
[360043791,1746513051356,-450.0,0.00019998,2]
[360043792,1746513051367,-450.0,0.00019998,2]
[360043793,1746513051377,-854.89,0.00019999,2]
[360043794,1746513051387,-450.0,0.00019999,2]
[360043795,1746513051396,-640.26,0.00019999,2]
[360043796,1746513051406,-450.0,0.00019999,2]
[360043797,1746513051416,-331.89682195,0.00019999,2]
[360043798,1746513062662,-483.44373943,0.00019524,2]
[360043799,1746513070544,-322.01015038,0.00019524,2]
[360043800,1746513070568,-48.93984962,0.000196,2]
[360043801,1746513074039,-151.06015038,0.000196,2]
[360043802,1746513151883,200.0,0.00019062,2]
[360043830,1746513327119,1000.0,0.00019023,2]
[360043831,1746513389932,186.39,0.00019019,2]
[360043841,1746513439873,250.0,0.00017,2]
[360043842,1746513440970,300.0,0.00019,2]
[360043854,1746513688271,526.71,0.0001705,2]
[360043855,1746513688463,526.71,0.00019314,2]
[360043859,1746513782880,829.92381462,0.0001947,2]
[360043860,1746513852713,-200.0,0.00019696,2]
[360043861,1746513852735,-0.21179641,0.000197,2]
[360043862,1746513859695,-156.10820359,0.000197,2]
[360043863,1746513883219,-43.68,0.000197,2]
[360043864,1746513883242,-163.72,0.00019703,2]
[360043865,1746513887198,-36.28,0.00019703,2]
[360043866,1746513887221,-113.72,0.00019805,2]
[360043867,1746513895325,-317.31576223,0.00019805,2]
[360043868,1746513898468,-329.97868245,0.00019805,2]
[360043869,1746513942174,273.73,0.0001895,2]
[360043899,1746514017310,3729.0,0.0003013,120]
[360043900,1746514030157,-151.34790166,0.00019521,2]
[360043901,1746514030182,-22.82209834,0.000196,2]
[360043902,1746514072280,151.54,0.00018945,2]
[360043903,1746514072494,151.54,0.00018993,2]
[360043904,1746514072701,151.54,0.0001904,2]
[360043905,1746514102701,27817.27,0.00018945,2]
[360043915,1746514232059,-168.44,0.00019547,2]
[360043916,1746514232069,-200.0,0.000196,2]
[360043917,1746514232079,-207.4,0.00019885,2]
[360043918,1746514232088,-270.2771,0.00019886,2]
[360043919,1746514232099,-250.0,0.00019893,2]
[360043920,1746514232110,-1200.0,0.00019893,2]
[360043921,1746514232119,-300.0,0.00019893,2]
[360043922,1746514232129,-1000.0,0.00019894,2]
[360043923,1746514232138,-28508.55958388,0.00019894,2]
[360043924,1746514232149,-450.037073,0.00019894,2]
[360043925,1746514232166,-1579.13148732,0.00019894,2]
[360043926,1746514232178,-10849.1263558,0.00019894,2]
[360043928,1746514232187,-1169.7215,0.00019895,2]
[360043930,1746514232196,-799.6414,0.00019896,2]
[360043932,1746514232206,-2500.0,0.00019896,2]
[360043934,1746514232216,-31397.9351,0.00019897,2]
[360043936,1746514232225,-272.94517321,0.00019897,2]
[360043938,1746514232235,-272.94517316,0.00019897,2]
[360043940,1746514232244,-272.94517316,0.00019898,2]
[360043942,1746514232254,-272.94517316,0.00019898,2]
[360043944,1746514232263,-272.94517316,0.00019898,2]
[360043946,1746514232273,-272.94517316,0.00019899,2]
[360043948,1746514232282,-162.23859141,0.00019899,2]
[360043950,1746514232291,-272.94517316,0.00019899,2]
[360043952,1746514232300,-272.94517316,0.00019899,2]
[360043954,1746514232310,-272.94517316,0.000199,2]
[360043956,1746514232319,-660.77901207,0.000199,2]
[360043958,1746514232331,-3681.06598655,0.000199,2]
[360043960,1746514232341,-2088.64,0.000199,2]
[360043962,1746514232350,-234.9407352,0.000199,2]
[360043964,1746514232359,-399.09720088,0.000199,2]
[360043966,1746514232368,-2727.46378737,0.000199,2]
[360043968,1746514232381,-7382.376725,0.000199,2]
[360043970,1746514232394,-2390.15948763,0.000199,2]
[360043972,1746514232403,-272.94517316,0.000199,2]
[360043974,1746514232415,-3464.12333921,0.000199,2]
[360043976,1746514232426,-5363.23904723,0.000199,2]
[360043979,1746514232441,-4592.24311282,0.000199,2]
[360043981,1746514232451,-574.14287632,0.000199,2]
[360043983,1746514232460,-500.0,0.00019973,2]
[360043985,1746514232470,-642.96,0.00019986,2]
[360043987,1746514232479,-1010.65401086,0.00019986,2]
[360044061,1746514238521,-173.61940952,0.000199,2]
[360044062,1746514238531,-285.51321501,0.00019986,2]
[360044063,1746514238542,-1153.86737547,0.00019986,2]
[360044068,1746514240195,-26005.78414816,0.00019986,2]
[360044069,1746514240205,-861.5159078,0.00019986,2]
[360044070,1746514240216,-4749.7332903,0.00019986,2]
[360044071,1746514240226,-10957.55,0.0001999,2]
[360044072,1746514240236,-500.0,0.00019993,2]
[360044073,1746514240246,-623.87948317,0.00019993,2]
[360044074,1746514240256,-500.0,0.00019993,2]
[360044075,1746514240265,-500.0,0.00019993,2]
[360044076,1746514240275,-500.0,0.00019993,2]
[360044077,1746514240284,-500.0,0.00019993,2]
[360044078,1746514240294,-500.0,0.00019993,2]
[360044079,1746514240303,-500.0,0.00019993,2]
[360044080,1746514240312,-500.0,0.00019993,2]
[360044081,1746514240322,-500.0,0.00019993,2]
[360044082,1746514240331,-500.0,0.00019993,2]
[360044083,1746514240340,-500.0,0.00019993,2]
[360044084,1746514240351,-267.98333845,0.00019993,2]
[360044085,1746514240361,-640.8870376,0.00019993,2]
[360044086,1746514240371,-589.89968229,0.00019994,2]
[360044087,1746514240381,-248.48682418,0.00019994,2]
[360044088,1746514240390,-212.32166938,0.00019994,2]
[360044089,1746514240399,-450.0,0.00019994,2]
[360044090,1746514240408,-463.45643991,0.00019994,2]
[360044091,1746514240418,-450.0,0.00019994,2]
[360044092,1746514240429,-308.15918124,0.00019994,2]
[360044093,1746514240442,-450.0,0.00019994,2]
[360044094,1746514240452,-451.39212043,0.00019994,2]
[360044095,1746514240462,-199.39905228,0.00019994,2]
[360044096,1746514240472,-450.0,0.00019994,2]
[360044097,1746514240482,-366.31219986,0.00019994,2]
[360044098,1746514240492,-450.0,0.00019994,2]
[360044099,1746514240501,-462.80212237,0.00019994,2]
[360044100,1746514240511,-488.2455134,0.00019994,2]
[360044101,1746514240520,-493.93913375,0.00019994,2]
[360044102,1746514240528,-477.866914,0.00019994,2]
[360044103,1746514240538,-450.0,0.00019994,2]
[360044104,1746514240547,-461.63915432,0.00019994,2]
[360044105,1746514240556,-450.0,0.00019994,2]
[360044106,1746514240566,-288.85968053,0.00019994,2]
[360044107,1746514240575,-450.0,0.00019994,2]
[360044108,1746514240585,-472.586127,0.00019994,2]
[360044109,1746514240594,-471.64604819,0.00019994,2]
[360044110,1746514240604,-469.30671581,0.00019994,2]
[360044111,1746514240614,-465.42206593,0.00019994,2]
[360044112,1746514240623,-453.35200801,0.00019994,2]
[360044113,1746514240634,-450.0,0.00019994,2]
[360044114,1746514240643,-454.8443088,0.00019994,2]
[360044115,1746514240652,-450.0,0.00019994,2]
[360044116,1746514240662,-506.84870607,0.00019994,2]
[360044117,1746514240671,-485.78564461,0.00019994,2]
[360044118,1746514240681,-450.0,0.00019994,2]
[360044119,1746514240695,-456.09214176,0.00019994,2]
[360044120,1746514240704,-450.0,0.00019994,2]
[360044121,1746514240713,-198.8974958,0.00019994,2]
[360044122,1746514240722,-450.0,0.00019994,2]
[360044123,1746514240732,-462.82195464,0.00019994,2]
[360044124,1746514240742,-500.72399423,0.00019994,2]
[360044125,1746514240751,-479.99356876,0.00019994,2]
[360044126,1746514240760,-450.0,0.00019994,2]
[360044127,1746514240772,-450.0,0.00019994,2]
[360044128,1746514240782,-450.0,0.00019994,2]
[360044129,1746514240791,-450.0,0.00019994,2]
[360044130,1746514240800,-536.28918008,0.00019994,2]
[360044131,1746514240810,-450.0,0.00019994,2]
[360044132,1746514240819,-424.86931227,0.00019994,2]
[360044133,1746514240828,-450.0,0.00019994,2]
[360044134,1746514240838,-450.0,0.00019994,2]
[360044135,1746514240848,-454.1614476,0.00019994,2]
[360044136,1746514240859,-368.96836652,0.00019994,2]
[360044137,1746514240868,-450.0,0.00019994,2]
[360044139,1746514240877,-450.0,0.00019994,2]
[360044140,1746514240886,-308.94026433,0.00019994,2]
[360044141,1746514240895,-450.0,0.00019994,2]
[360044142,1746514240906,-450.0,0.00019994,2]
[360044143,1746514240915,-458.42820587,0.00019994,2]
[360044144,1746514240925,-450.0,0.00019994,2]
[360044145,1746514240934,-482.07389186,0.00019994,2]
[360044146,1746514240944,-453.1521665,0.00019994,2]
[360044147,1746514240953,-323.12287038,0.00019994,2]